fUSD/lending_fUSD_20250219
["ID","MTS","AMOUNT","RATE_DAILY","PERIOD"]
[353699344,1739993444096,-316.80765635,0.00011199,2]
[353699346,1739993444105,-1089.07,0.00011199,2]
[353699348,1739993444115,-500.0,0.00011199,2]
[353699350,1739993444125,-715.03,0.00011199,2]
[353699352,1739993444135,-247.843556,0.00011199,2]
[353699354,1739993444144,-582.19,0.00011199,2]
[353699356,1739993444154,-3062.22,0.00011199,2]
[353699358,1739993444163,-701.72,0.00011199,2]
[353699360,1739993444172,-613.7,0.00011199,2]
[353699362,1739993444182,-500.0,0.00011199,2]
[353699364,1739993444192,-500.0,0.00011199,2]
[353699366,1739993444202,-500.0,0.00011199,2]
[353699368,1739993444211,-578.68,0.00011199,2]
[353699370,1739993444221,-744.08,0.00011199,2]
[353699372,1739993444230,-703.98,0.00011199,2]
[353699374,1739993444243,-707.74,0.00011199,2]
[353699376,1739993444253,-1758.99,0.00011199,2]
[353699378,1739993444262,-803.09,0.00011199,2]
[353699380,1739993444272,-891.15,0.00011199,2]
[353699382,1739993444282,-1029.67,0.00011199,2]
[353699384,1739993444291,-500.0,0.00011199,2]
[353699386,1739993444300,-500.0,0.000112,2]
[353699388,1739993444309,-500.0,0.000112,2]
[353699389,1739993444319,-1183.04,0.000112,2]
[353699390,1739993444327,-500.0,0.000112,2]
[353699391,1739993444335,-500.0,0.000112,2]
[353699392,1739993444344,-500.0,0.000112,2]
[353699393,1739993444353,-500.0,0.000112,2]
[353699394,1739993444362,-500.0,0.000112,2]
[353699395,1739993444371,-500.0,0.000112,2]
[353699396,1739993444380,-500.0,0.000112,2]
[353699398,1739993444390,-500.0,0.000112,2]
[353699400,1739993444401,-500.0,0.000112,2]
[353699402,1739993444410,-500.0,0.000112,2]
[353699404,1739993444419,-500.0,0.000112,2]
[353699406,1739993444428,-500.0,0.000112,2]
[353699408,1739993444438,-325.65610111,0.000112,2]
[353699415,1739993444498,731.9,0.00010427,2]
[353699420,1739993444530,-174.34389889,0.000112,2]
[353699422,1739993444540,-500.0,0.000112,2]
[353699424,1739993444549,-500.0,0.000112,2]
[353699426,1739993444559,-764.49,0.000112,2]
[353699428,1739993444568,-500.0,0.000112,2]
[353699429,1739993444578,-500.0,0.000112,2]
[353699431,1739993444589,-500.0,0.000112,2]
[353699433,1739993444599,-320.57806045,0.000112,2]
[353699438,1739993444633,731.9,0.00010438,2]
[353699445,1739993444690,731.9,0.00010449,2]
[353699460,1739993444828,731.9,0.00010459,2]
[353699470,1739993444917,731.9,0.0001047,2]
[353699477,1739993444976,731.9,0.00010481,2]
[353699485,1739993445047,731.9,0.00010492,2]
[353699509,1739993445275,-731.9,0.00010503,2]
[353699511,1739993445285,-731.9,0.00010514,2]
[353699513,1739993445294,-500.55,0.00011149,2]
[353699515,1739993445304,-179.42193955,0.000112,2]
[353699517,1739993445315,-500.0,0.000112,2]
[353699519,1739993445325,-500.0,0.000112,2]
[353699521,1739993445334,-500.0,0.000112,2]
[353699523,1739993445343,-500.0,0.000112,2]
[353699525,1739993445352,-500.0,0.000112,2]
[353699527,1739993445361,-500.0,0.000112,2]
[353699529,1739993445370,-500.0,0.000112,2]
[353699531,1739993445380,-256.91153215,0.000112,2]
[353699533,1739993445392,-283.82846785,0.000112,2]
[353699535,1739993445403,-500.0,0.000112,2]
[353699537,1739993445413,-500.0,0.000112,2]
[353699539,1739993445423,-500.0,0.000112,2]
[353699541,1739993445433,-500.0,0.000112,2]
[353699543,1739993445442,-500.0,0.000112,2]
[353699564,1739993445608,-500.0,0.000112,2]
[353699567,1739993445657,-500.0,0.000112,2]
[353699569,1739993445666,-148.91874919,0.000112,2]
[353699572,1739993445685,-351.08125081,0.000112,2]
[353699574,1739993445695,-329.29664218,0.000112,2]
[353699576,1739993445706,-170.70335782,0.000112,2]
[353699578,1739993445716,-261.29664218,0.000112,2]
[353699581,1739993445735,-238.70335782,0.000112,2]
[353699583,1739993445744,-500.0,0.000112,2]
[353699585,1739993445754,-500.0,0.000112,2]
[353699586,1739993445763,-500.0,0.000112,2]
[353699587,1739993445773,-500.0,0.000112,2]
[353699588,1739993445782,-500.0,0.000112,2]
[353699589,1739993445791,-500.0,0.000112,2]
[353699591,1739993445801,-340.70302566,0.000112,2]
[353699593,1739993445811,-500.0,0.000112,2]
[353699594,1739993445821,-500.0,0.000112,2]
[353699595,1739993445830,-547.53,0.000112,2]
[353699597,1739993445840,-500.0,0.000112,2]
[353699599,1739993445849,-500.0,0.000112,2]
[353699601,1739993445860,-500.0,0.000112,2]
[353699603,1739993445870,-500.0,0.000112,2]
[353699605,1739993445880,-520.12,0.000112,2]
[353699607,1739993445890,-500.0,0.000112,2]
[353699609,1739993445904,-500.0,0.000112,2]
[353699611,1739993445917,-500.0,0.000112,2]
[353699613,1739993445928,-500.0,0.000112,2]
[353699615,1739993445938,-500.0,0.000112,2]
[353699617,1739993445948,-500.0,0.000112,2]
[353699619,1739993445958,-500.0,0.000112,2]
[353699621,1739993445969,-500.0,0.000112,2]
[353699623,1739993445979,-500.0,0.000112,2]
[353699625,1739993445989,-500.0,0.000112,2]
[353699627,1739993445998,-500.0,0.000112,2]
[353699629,1739993446008,-489.83716829,0.000112,2]
[353699632,1739993446021,-10.16283171,0.000112,2]
[353699634,1739993446031,-500.0,0.000112,2]
[353699636,1739993446041,-500.0,0.000112,2]
[353699638,1739993446051,-500.0,0.000112,2]
[353699640,1739993446061,-500.0,0.000112,2]
[353699642,1739993446071,-500.0,0.000112,2]
[353699644,1739993446081,-509.73,0.000112,2]
[353699646,1739993446091,-500.0,0.000112,2]
[353699648,1739993446101,-500.0,0.000112,2]
[353699650,1739993446111,-500.0,0.000112,2]
[353699652,1739993446122,-500.0,0.000112,2]
[353699654,1739993446131,-500.0,0.000112,2]
[353699656,1739993446141,-500.0,0.000112,2]
[353699658,1739993446154,-500.0,0.000112,2]
[353699660,1739993446163,-500.0,0.000112,2]
[353699662,1739993446173,-500.0,0.000112,2]
[353699664,1739993446182,-500.0,0.000112,2]
[353699666,1739993446192,-583.38,0.000112,2]
[353699668,1739993446202,-539.81,0.000112,2]
[353699669,1739993446211,-500.0,0.000112,2]
[353699671,1739993446220,-500.0,0.000112,2]
[353699673,1739993446230,-500.0,0.000112,2]
[353699675,1739993446244,-500.0,0.000112,2]
[353699677,1739993446259,-500.0,0.000112,2]
[353699679,1739993446271,-500.0,0.000112,2]
[353699681,1739993446282,-500.0,0.000112,2]
[353699683,1739993446291,-500.0,0.000112,2]
[353699685,1739993446301,-500.0,0.000112,2]
[353699687,1739993446310,-500.0,0.000112,2]
[353699689,1739993446320,-500.0,0.000112,2]
[353699690,1739993446328,-500.0,0.000112,2]
[353699692,1739993446338,-500.0,0.000112,2]
[353699694,1739993446347,-500.0,0.000112,2]
[353699696,1739993446356,-500.0,0.000112,2]
[353699698,1739993446366,-500.0,0.000112,2]
[353699700,1739993446375,-500.0,0.000112,2]
[353699702,1739993446384,-500.0,0.000112,2]
[353699704,1739993446393,-500.0,0.000112,2]
[353699706,1739993446404,-500.0,0.000112,2]
[353699708,1739993446416,-500.0,0.000112,2]
[353699710,1739993446425,-500.0,0.000112,2]
[353699712,1739993446437,-500.0,0.000112,2]
[353699714,1739993446448,-500.0,0.000112,2]
[353699716,1739993446459,-500.0,0.000112,2]
[353699718,1739993446469,-500.0,0.000112,2]
[353699720,1739993446478,-500.0,0.000112,2]
[353699722,1739993446488,-638.13,0.000112,2]
[353699724,1739993446498,-500.0,0.000112,2]
[353699726,1739993446507,-543.54,0.000112,2]
[353699728,1739993446516,-718.77,0.000112,2]
[353699730,1739993446524,-500.0,0.000112,2]
[353699732,1739993446534,-500.0,0.000112,2]
[353699734,1739993446544,-500.0,0.000112,2]
[353699736,1739993446554,-896.33,0.000112,2]
[353699738,1739993446563,-500.0,0.000112,2]
[353699740,1739993446573,-500.0,0.000112,2]
[353699742,1739993446583,-500.0,0.000112,2]
[353699744,1739993446592,-500.0,0.000112,2]
[353699746,1739993446601,-1473.54,0.000112,2]
[353699748,1739993446611,-500.0,0.000112,2]
[353699750,1739993446622,-500.0,0.000112,2]
[353699752,1739993446632,-1147.44,0.000112,2]
[353699754,1739993446642,-500.0,0.000112,2]
[353699756,1739993446653,-705.88,0.000112,2]
[353699758,1739993446663,-500.0,0.000112,2]
[353699760,1739993446672,-500.0,0.000112,2]
[353699762,1739993446682,-795.33,0.000112,2]
[353699764,1739993446692,-500.0,0.000112,2]
[353699766,1739993446702,-545.17,0.000112,2]
[353699768,1739993446711,-500.0,0.000112,2]
[353699770,1739993446722,-1153.0,0.000112,2]
[353699772,1739993446731,-500.0,0.000112,2]
[353699774,1739993446741,-500.0,0.000112,2]
[353699776,1739993446750,-559.91,0.000112,2]
[353699778,1739993446760,-500.0,0.000112,2]
[353699780,1739993446770,-585.91,0.000112,2]
[353699782,1739993446779,-500.0,0.000112,2]
[353699784,1739993446789,-681.34,0.000112,2]
[353699786,1739993446798,-500.0,0.000112,2]
[353699787,1739993446807,-825.44,0.000112,2]
[353699789,1739993446817,-641.24,0.000112,2]
[353699791,1739993446827,-500.0,0.000112,2]
[353699794,1739993446836,-500.0,0.000112,2]
[353699796,1739993446846,-500.0,0.000112,2]
[353699798,1739993446856,-543.23,0.000112,2]
[353699800,1739993446866,-500.0,0.000112,2]
[353699802,1739993446876,-500.0,0.000112,2]
[353699804,1739993446886,-500.0,0.000112,2]
[353699805,1739993446895,-500.0,0.000112,2]
[353699808,1739993446907,-1092.23,0.000112,2]
[353699810,1739993446916,-500.0,0.000112,2]
[353699811,1739993446925,-500.0,0.000112,2]
[353699813,1739993446935,-997.87,0.000112,2]
[353699815,1739993446944,-500.0,0.000112,2]
[353699818,1739993446954,-500.0,0.000112,2]
[353699819,1739993446963,-988.79,0.000112,2]
[353699822,1739993446973,-500.0,0.000112,2]
[353699824,1739993446983,-500.0,0.000112,2]
[353699825,1739993446992,-1097.61,0.000112,2]
[353699827,1739993447001,-500.0,0.000112,2]
[353699829,1739993447011,-500.0,0.000112,2]
[353699831,1739993447020,-500.0,0.000112,2]
[353699833,1739993447030,-500.0,0.000112,2]
[353699835,1739993447040,-500.0,0.000112,2]
[353699837,1739993447049,-500.0,0.000112,2]
[353699839,1739993447058,-500.0,0.000112,2]
[353699841,1739993447068,-641.22833522,0.000112,2]
[353699843,1739993447078,-707.49,0.000112,2]
[353699845,1739993447088,-599.71,0.000112,2]
[353699847,1739993447097,-500.0,0.000112,2]
[353699849,1739993447106,-617.72892812,0.000112,2]
[353699851,1739993447116,-500.0,0.000112,2]
[353699853,1739993447125,-502.99965847,0.000112,2]
[353699855,1739993447135,-593.82,0.000112,2]
[353699856,1739993447144,-651.05,0.000112,2]
[353699857,1739993447154,-500.0,0.000112,2]
[353699858,1739993447162,-500.0,0.000112,2]
[353699859,1739993447171,-500.0,0.000112,2]
[353699860,1739993447180,-500.0,0.00011201,2]
[353699861,1739993447189,-500.0,0.00011201,2]
[353699862,1739993447197,-500.0,0.00011201,2]
[353699863,1739993447206,-500.0,0.00011201,2]
[353699865,1739993447215,-500.0,0.00011201,2]
[353699867,1739993447225,-500.0,0.00011201,2]
[353699869,1739993447235,-500.0,0.00011201,2]
[353699871,1739993447247,-500.0,0.00011201,2]
[353699873,1739993447257,-500.0,0.00011201,2]
[353699875,1739993447267,-590.61,0.00011232,2]
[353699877,1739993447277,-500.0,0.00011232,2]
[353699879,1739993447286,-547.4,0.00011232,2]
[353699881,1739993447296,-720.53,0.00011232,2]
[353699883,1739993447305,-746.88,0.00011232,2]
[353699885,1739993447314,-500.0,0.00011232,2]
[353699887,1739993447324,-609.73,0.00011232,2]
[353699889,1739993447333,-1006.69,0.00011232,2]
[353699891,1739993447344,-716.76,0.00011232,2]
[353699893,1739993447353,-632.13,0.00011232,2]
[353699895,1739993447362,-551.19,0.00011232,2]
[353699897,1739993447371,-500.0,0.00011232,2]
[353699899,1739993447381,-500.0,0.00011232,2]
[353699901,1739993447391,-1182.04,0.00011232,2]
[353699903,1739993447402,-500.55,0.00011232,2]
[353699905,1739993447411,-150.0,0.00011236,2]
[353699907,1739993447421,-802.75,0.00011246,2]
[353699909,1739993447431,-662.16,0.00011246,2]
[353699911,1739993447441,-666.95,0.00011246,2]
[353699913,1739993447451,-500.0,0.00011246,2]
[353699915,1739993447462,-502.28771644,0.00011246,2]
[353699958,1739993447882,-500.0,0.00010999,2]
[353699960,1739993447892,-500.0,0.00011081,2]
[353699963,1739993447903,-275.23301831,0.00011164,2]
[353699965,1739993447914,-224.76698169,0.00011164,2]
[353699967,1739993447924,-350.87228356,0.00011246,2]
[353699969,1739993447934,-479.57364641,0.00011246,2]
[353699973,1739993447964,3880.99,0.0001021,2]
[353699975,1739993447976,-20.42635359,0.00011246,2]
[353699977,1739993447986,-500.0,0.00011246,2]
[353699979,1739993447995,-656.98,0.00011246,2]
[353699981,1739993448004,-500.0,0.00011246,2]
[353699983,1739993448014,-500.0,0.00011246,2]
[353699985,1739993448023,-500.0,0.00011246,2]
[353699988,1739993448033,-880.12,0.00011246,2]
[353699990,1739993448043,-500.0,0.00011246,2]
[353699992,1739993448052,-150.0,0.0001125,2]
[353699994,1739993448061,-6424.39755995,0.00011252,2]
[353699995,1739993448071,-500.0,0.00011264,2]
[353699997,1739993448080,-500.0,0.00011264,2]
[353699999,1739993448090,-500.0,0.00011264,2]
[353700001,1739993448100,-500.0,0.00011264,2]
[353700004,1739993448110,-175.25457586,0.00011264,2]
[353700006,1739993448120,-500.0,0.00011264,2]
[353700008,1739993448130,-500.0,0.00011264,2]
[353700010,1739993448140,-426.79709903,0.00011264,2]
[353700012,1739993448149,-500.0,0.00011264,2]
[353700014,1739993448159,-500.0,0.00011264,2]
[353700015,1739993448169,-500.0,0.00011264,2]
[353700018,1739993448179,-500.0,0.00011264,2]
[353700020,1739993448188,-500.0,0.00011264,2]
[353700021,1739993448198,-500.0,0.00011264,2]
[353700024,1739993448208,-500.0,0.00011264,2]
[353700026,1739993448217,-500.0,0.00011264,2]
[353700028,1739993448228,-500.0,0.00011264,2]
[353700029,1739993448240,-325.39324612,0.00011264,2]
[353700032,1739993448250,-500.0,0.00011264,2]
[353700034,1739993448260,-4658.77353832,0.00011265,2]
[353700036,1739993448272,-308.60626168,0.00011265,2]
[353700038,1739993448282,-13918.6808,0.00011265,2]
[353700040,1739993448292,-177.39420077,0.00011271,2]
[353700042,1739993448301,-253.37255822,0.0001128,3]
[353700044,1739993448311,-19459.83265494,0.00011281,3]
[353700046,1739993448323,-732.0,0.00011281,3]
[353700048,1739993448334,-987.00346828,0.00011281,3]
[353700051,1739993448354,-3034.23498791,0.00011281,3]
[353700054,1739993448372,-918.0,0.00011281,3]
[353700055,1739993448384,-341876.41329945,0.00011281,3]
[353701522,1739993484760,1200.0,9.78e-05,2]
[353701523,1739993515970,3800.0,9.78e-05,2]
[353701524,1739993522514,3200.0,9.78e-05,2]
[353701525,1739993571362,189.62,8.767e-05,2]
[353701529,1739993631286,1100.0,8.22e-05,2]
[353701530,1739993632910,1100.0,9.59e-05,2]
[353701531,1739993644927,3397.39,0.00010259,2]
[353701532,1739993663463,3500.0,8.22e-05,2]
[353701533,1739993665046,3500.0,9.59e-05,2]
[353701534,1739993667867,2900.0,9.314e-05,2]
[353701535,1739993706195,154.0,9.314e-05,3]
[353701537,1739993754306,1027.22,0.00010145,2]
[353701538,1739993777070,1597.65,0.00010136,2]
[353701539,1739993780866,4723.93,0.00010137,2]
[353701540,1739993861442,174.76,0.0001009,2]
[353701541,1739993910223,1531.66,0.00010093,2]
[353701542,1739993926933,1202.68,8.219e-05,2]
[353701543,1739993927143,1202.68,0.0001048,2]
[353701544,1739994006277,154.0,9.314e-05,3]
[353701545,1739994025229,490.06,0.00010086,2]
[353701551,1739994073263,23900.0,0.00010086,2]
[353701552,1739994190494,250.0,0.00010077,2]
[353701553,1739994220127,164.52,8.059e-05,2]
[353701554,1739994220346,164.52,0.00010074,2]
[353701555,1739994229657,1597.35,0.00010074,2]
[353701557,1739994307124,155.0,9.314e-05,3]
[353701558,1739994472793,2059.52,0.00010031,2]
[353701559,1739994477663,2900.0,8.22e-05,2]
[353701560,1739994479231,2900.0,9.59e-05,2]
[353701561,1739994479336,3100.0,8.22e-05,2]
[353701562,1739994481268,3100.0,9.59e-05,2]
[353701563,1739994511303,1000.0,9.314e-05,2]
[353701564,1739994520624,1977.1,0.00010007,2]
[353701572,1739994546123,7958.69,0.00010007,2]
[353701573,1739994600089,1000.0,9.997e-05,2]
[353701574,1739994606416,155.0,9.314e-05,3]
[353701575,1739994625824,220.08,9.994e-05,2]
[353701577,1739994632130,-166.67,0.00010608,2]
[353701578,1739994632140,-150.0,0.00010617,2]
[353701579,1739994632150,-1073.34539406,0.00010626,2]
[353701580,1739994632160,-1000.0,0.00010684,2]
[353701581,1739994632170,-1073.34539405,0.000107,2]
[353701582,1739994632179,-150.0,0.00010726,2]
[353701583,1739994632189,-150.0,0.00010726,2]
[353701584,1739994632198,-150.0,0.00010726,2]
[353701585,1739994632207,-150.0,0.00010726,2]
[353701586,1739994632216,-150.0,0.00010727,2]
[353701587,1739994632226,-300.0,0.000108,3]
[353701588,1739994632235,-150.0,0.00010875,2]
[353701589,1739994632244,-700.0,0.000109,3]
[353701590,1739994632253,-494.06,0.00010919,2]
[353701591,1739994632262,-150.0,0.00010932,2]
[353701592,1739994632271,-300.0,0.00010959,2]
[353701593,1739994632280,-814.19,0.0001096,2]
[353701594,1739994632289,-2900.0,0.0001096,2]
[353701595,1739994632298,-1267.06702707,0.0001096,2]
[353701596,1739994632310,-1832.93297293,0.0001096,2]
[353701597,1739994632319,-299.99,0.0001096,2]
[353701598,1739994632329,-150.99,0.0001096,2]
[353701599,1739994632338,-150.0,0.00010964,2]
[353701600,1739994632347,-150.0,0.0001098,2]
[353701601,1739994632356,-15396.0,0.00010981,2]
[353701602,1739994632365,-1927.20886057,0.00010981,2]
[353701603,1739994632377,-3072.79113943,0.00010981,2]
[353701604,1739994632387,-150.0,0.00010982,2]
[353701605,1739994632396,-250.0,0.00010994,2]
[353701606,1739994632406,-501.3,0.00010999,2]
[353701607,1739994632415,-163.04616012,0.00010999,2]
[353701608,1739994632426,-332.95383988,0.00010999,2]
[353701609,1739994632436,-491.47,0.00010999,2]
[353701610,1739994632445,-503.74,0.00010999,2]
[353701611,1739994632455,-500.78,0.00010999,2]
[353701612,1739994632464,-509.71,0.00010999,2]
[353701613,1739994632473,-497.9,0.00010999,2]
[353701614,1739994632483,-478.78,0.00010999,2]
[353701615,1739994632492,-500.0,0.00010999,2]
[353701616,1739994632501,-500.0,0.00010999,2]
[353701617,1739994632511,-525.16616012,0.00010999,2]
[353701618,1739994632522,-97.82254191,0.00010999,2]
[353701619,1739994632532,-358.96334629,0.00010999,2]
[353701620,1739994632543,-141.03665371,0.00010999,2]
[353701621,1739994632553,-500.0,0.00010999,2]
[353701622,1739994632562,-500.0,0.00010999,2]
[353701623,1739994632571,-500.0,0.00010999,2]
[353701624,1739994632580,-500.0,0.00010999,2]
[353701625,1739994632590,-500.0,0.00010999,2]
[353701626,1739994632599,-500.0,0.00010999,2]
[353701627,1739994632609,-500.0,0.00010999,2]
[353701628,1739994632618,-500.0,0.00010999,2]
[353701629,1739994632627,-500.0,0.00010999,2]
[353701630,1739994632636,-500.0,0.00010999,2]
[353701631,1739994632650,-500.0,0.00010999,2]
[353701632,1739994632660,-500.0,0.00010999,2]
[353701633,1739994632668,-500.0,0.00010999,2]
[353701634,1739994632677,-500.0,0.00010999,2]
[353701636,1739994632687,-500.0,0.00010999,2]
[353701638,1739994632695,-500.0,0.00010999,2]
[353701640,1739994632704,-196.94912069,0.00010999,2]
[353701642,1739994632712,-500.0,0.00010999,2]
[353701644,1739994632722,-500.0,0.00010999,2]
[353701646,1739994632731,-249.5142256,0.00010999,2]
[353701651,1739994632762,-215.36740715,0.00010999,2]
[353701653,1739994632771,-500.0,0.00010999,2]
[353701655,1739994632780,-500.0,0.00010999,2]
[353701657,1739994632789,-500.0,0.00010999,2]
[353701659,1739994632798,-500.0,0.00010999,2]
[353701661,1739994632807,-500.0,0.00010999,2]
[353701663,1739994632817,-621.23293064,0.00010999,2]
[353701664,1739994632826,-500.0,0.00010999,2]
[353701666,1739994632835,-500.0,0.00010999,2]
[353701668,1739994632844,-500.0,0.00010999,2]
[353701670,1739994632854,-500.0,0.00010999,2]
[353701672,1739994632863,-500.0,0.00010999,2]
[353701675,1739994632872,-500.0,0.00010999,2]
[353701677,1739994632882,-500.0,0.00010999,2]
[353701679,1739994632891,-505.32338928,0.00010999,2]
[353701681,1739994632900,-594.366065,0.00010999,2]
[353701683,1739994632909,-500.0,0.00010999,2]
[353701685,1739994632918,-505.0800314,0.00010999,2]
[353701687,1739994632927,-500.0,0.00010999,2]
[353701689,1739994632936,-500.0,0.00010999,2]
[353701691,1739994632945,-500.0,0.00010999,2]
[353701693,1739994632954,-500.0,0.00010999,2]
[353701695,1739994632963,-500.0,0.00010999,2]
[353701697,1739994632972,-486.81666558,0.00010999,2]
[353701699,1739994632981,-500.0,0.00010999,2]
[353701701,1739994632990,-500.0,0.00010999,2]
[353701703,1739994632999,-500.0,0.00010999,2]
[353701705,1739994633008,-500.0,0.00010999,2]
[353701707,1739994633018,-510.9926532,0.00010999,2]
[353701709,1739994633027,-500.0,0.00010999,2]
[353701711,1739994633037,-500.0,0.00010999,2]
[353701713,1739994633046,-595.56,0.00010999,2]
[353701715,1739994633055,-500.0,0.00010999,2]
[353701717,1739994633065,-500.0,0.00010999,2]
[353701719,1739994633074,-500.0,0.00010999,2]
[353701721,1739994633085,-500.0,0.00010999,2]
[353701723,1739994633094,-500.0,0.00010999,2]
[353701725,1739994633103,-500.0,0.00010999,2]
[353701727,1739994633113,-500.0,0.00010999,2]
[353701729,1739994633123,-500.0,0.00010999,2]
[353701731,1739994633132,-500.0,0.00010999,2]
[353701733,1739994633141,-500.0,0.00010999,2]
[353701735,1739994633152,-500.0,0.00010999,2]
[353701737,1739994633161,-500.0,0.00010999,2]
[353701739,1739994633171,-500.0,0.00010999,2]
[353701741,1739994633180,-500.0,0.00010999,2]
[353701743,1739994633189,-500.0,0.00010999,2]
[353701745,1739994633198,-500.0,0.00010999,2]
[353701747,1739994633208,-500.0,0.00010999,2]
[353701749,1739994633217,-500.0,0.00010999,2]
[353701751,1739994633226,-500.0,0.00010999,2]
[353701753,1739994633236,-500.0,0.00010999,2]
[353701755,1739994633245,-500.0,0.00010999,2]
[353701757,1739994633254,-500.0,0.00010999,2]
[353701759,1739994633263,-329.79296731,0.00010999,2]
[353701761,1739994633272,-695.38,0.00010999,2]
[353701763,1739994633281,-500.0,0.00010999,2]
[353701765,1739994633291,-511.7267196,0.00010999,2]
[353701767,1739994633300,-589.91,0.00010999,2]
[353701769,1739994633310,-392.04457854,0.00010999,2]
[353701771,1739994633319,-500.0,0.00010999,2]
[353701773,1739994633329,-500.0,0.00010999,2]
[353701775,1739994633338,-500.0,0.00010999,2]
[353701777,1739994633348,-500.0,0.00010999,2]
[353701779,1739994633357,-500.0,0.00010999,2]
[353701781,1739994633366,-500.0,0.00010999,2]
[353701783,1739994633376,-500.0,0.00010999,2]
[353701785,1739994633385,-500.0,0.00010999,2]
[353701787,1739994633393,-500.0,0.00010999,2]
[353701789,1739994633403,-500.0,0.00010999,2]
[353701791,1739994633414,-500.0,0.00010999,2]
[353701793,1739994633423,-500.0,0.00010999,2]
[353701795,1739994633432,-500.0,0.00010999,2]
[353701797,1739994633444,-500.0,0.00010999,2]
[353701799,1739994633454,-500.0,0.00010999,2]
[353701801,1739994633465,-500.0,0.00010999,2]
[353701803,1739994633476,-500.0,0.00010999,2]
[353701805,1739994633486,-1138.22,0.00010999,2]
[353701807,1739994633495,-309.61694853,0.00010999,2]
[353701810,1739994633511,-190.38305147,0.00010999,2]
[353701812,1739994633520,-298.78948777,0.00010999,2]
[353701814,1739994633532,-201.21051223,0.00010999,2]
[353701816,1739994633545,-500.0,0.00010999,2]
[353701818,1739994633555,-500.0,0.00010999,2]
[353701820,1739994633565,-500.0,0.00010999,2]
[353701822,1739994633574,-503.20894019,0.00010999,2]
[353701824,1739994633584,-500.0,0.00010999,2]
[353701826,1739994633593,-500.0,0.00010999,2]
[353701828,1739994633602,-501.59,0.00010999,2]
[353701830,1739994633612,-500.0,0.00010999,2]
[353701832,1739994633621,-500.0,0.00010999,2]
[353701834,1739994633630,-500.0,0.00010999,2]
[353701836,1739994633640,-500.0,0.00010999,2]
[353701837,1739994633654,-500.0,0.00010999,2]
[353701839,1739994633664,-500.0,0.00010999,2]
[353701842,1739994633674,-500.0,0.00010999,2]
[353701844,1739994633684,-500.0,0.00010999,2]
[353701845,1739994633694,-500.0,0.00010999,2]
[353701847,1739994633703,-500.0,0.00010999,2]